[Event "FIN-ch Seniors 50 2020"]
[Site "Helsinki"]
[Date "2020.09.24"]
[Round "1.1"]
[White "Hamalainen, Sami"]
[Black "Kumpulainen, Jari"]
[Result "1-0"]
[ECO "B16"]
[WhiteElo "2182"]
[BlackElo "1912"]
[Annotator "ChessBase"]
[PlyCount "126"]
[EventDate "2020.09.24"]
[EventType "tourn"]
[EventCountry "FIN"]
[SourceTitle "playchess.com"]
[Source "ChessBase"]
[SourceQuality "1"]
[TimeControl "40/5400+30:1800+30"]

1. e4 {[%emt 0:00:00]} d5 {[%emt 0:00:00]} 2. exd5 {[%emt 0:00:00]} Qxd5 {[%emt 0:00:00]} 3. Nc3 {[%emt 0:00:00]} Qa5 {[%emt 0:00:00]} 4. d4 {[%emt 0:00:35]} c6 {[%emt 0:00:13]} 5. Bc4 {[%emt 0:01:20]} Nf6 {[%emt 0:00:33]} 6. Bd2 {[%emt 0:01:30]} Bf5 {[%emt 0:01:14]} 7. Nf3 {[%emt 0:02:25]} e6 {[%emt 0:01:06]} 8. Nd5 {[%emt 0:02:03]} Qd8 {[%emt 0:00:06]} 9. Nxf6+ {[%emt 0:00:13]} gxf6 {[%emt 0:02:44]} 10. Bf4 {[%emt 0:02:14]} Nd7 {[%emt 0:09:33]} 11. Qe2 {[%emt 0:09:39]} Nb6 {[%emt 0:02:22]} 12. Bb3 {[%emt 0:00:11]} Nd5 {[%emt 0:01:43]} 13. Bd2 {[%emt 0:02:04]} Qc7 {[%emt 0:01:48]} 14. Nh4 {[%emt 0:02:42]} Bg6 {[%emt 0:01:35]} 15. O-O-O {[%emt 0:03:48]} O-O-O {[%emt 0:01:00]} 16. g3 {[%emt 0:08:27]} Bb4 {[%emt 0:06:49]} 17. Bxb4 {[%emt 0:22:39]} Nxb4 {[%emt 0:00:13]} 18. Qf3 {[%emt 0:15:28]} Qe7 {[%emt 0:07:13]} 19. Rhe1 {[%emt 0:01:32]} Kb8 {[%emt 0:05:15]} 20. a3 {[%emt 0:07:41]} Nd5 {[%emt 0:00:41]} 21. Kb1 {[%emt 0:01:01]} Rd7 {[%emt 0:09:39]} 22. Nxg6 {[%emt 0:05:23]} hxg6 {[%emt 0:00:25]} 23. h4 {[%emt 0:00:14]} Qd8 {[%emt 0:03:39]} 24. c3 {[%emt 0:03:46]} f5 {[%emt 0:00:24]} 25. Bxd5 {[%emt 0:03:16]} cxd5 {[%emt 0:07:05]} 26. Qf4+ {[%emt 0:01:04]} Qc7 {[%emt 0:01:47]} 27. Qxc7+ {[%emt 0:00:53]} Kxc7 {[%emt 0:00:13]} 28. Kc2 {[%emt 0:00:24]} Kd6 {[%emt 0:00:38]} 29. Re2 {[%emt 0:01:11]} Ke7 {[%emt 0:00:40]} 30. Rde1 {[%emt 0:00:36]} Kf6 {[%emt 0:00:31]} 31. f4 {[%emt 0:00:18]} Rc7 {[%emt 0:00:32]} 32. Kd3 {[%emt 0:00:15]} Rhc8 {[%emt 0:02:54]} 33. Rc2 {[%emt 0:00:31]} b5 {[%emt 0:01:12]} 34. b3 {[%emt 0:01:17]} a5 {[%emt 0:00:36]} 35. Rec1 {[%emt 0:00:32]} Ke7 {[%emt 0:00:42]} 36. c4 {[%emt 0:00:53]} dxc4+ {[%emt 0:04:28]} 37. bxc4 {[%emt 0:00:07]} bxc4+ {[%emt 0:01:15]} 38. Rxc4 {[%emt 0:00:03]} Kd6 {[%emt 0:00:30]} 39. Rxc7 {[%emt 0:02:19]} Rxc7 {[%emt 0:00:06]} 40. Rb1 {[%emt 0:00:07]} Ra7 {[%emt 0:03:27]} 41. Rb5 {[%emt 0:31:11]} Kd7 {[%emt 0:31:42]} 42. a4 {[%emt 0:00:00]} Kd6 {[%emt 0:00:00]} 43. d5 {[%emt 0:00:00]} e5 {[%emt 0:00:00]} 44. fxe5+ {[%emt 0:00:00]} Kxe5 {[%emt 0:00:00]} 45. Kc4 {[%emt 0:00:00]} Rc7+ {[%emt 0:00:00]} 46. Rc5 {[%emt 0:00:00]} Rb7 {[%emt 0:00:00]} 47. Rxa5 {[%emt 0:00:00]} Rb1 {[%emt 0:00:00]} 48. Rb5 {[%emt 0:00:00]} Rc1+ {[%emt 0:00:00]} 49. Kb4 {[%emt 0:00:00]} Rg1 {[%emt 0:00:00]} 50. a5 {[%emt 0:00:00]} Rxg3 {[%emt 0:00:00]} 51. a6 {[%emt 0:00:00]} Rg4+ {[%emt 0:00:00]} 52. Ka5 {[%emt 0:01:41]} Rxh4 {[%emt 0:00:00]} 53. a7 {[%emt 0:00:10]} Rh8 {[%emt 0:00:00]} 54. Kb6 {[%emt 0:03:25]} f4 {[%emt 0:00:00]} 55. Kc7 {[%emt 0:00:34]} Ra8 {[%emt 0:00:00]} 56. d6+ {[%emt 0:00:34]} Ke6 {[%emt 0:00:00]} 57. Ra5 {[%emt 0:00:31]} f3 {[%emt 0:00:00]} 58. d7 {[%emt 0:00:59]} f2 {[%emt 0:00:00]} 59. d8=Q {[%emt 0:00:31]} Rxd8 {[%emt 0:00:00]} 60. Kxd8 {[%emt 0:00:13]} f1=Q {[%emt 0:00:00]} 61. a8=Q {[%emt 0:00:27]} Qd3+ {[%emt 0:00:00]} 62. Ke8 {[%emt 0:00:43]} Kf6 {[%emt 0:00:00]} 63. Kf8 {[%emt 0:00:41]} Ke6 {[%emt 0:34:57]} 1-0

[Event "FIN-ch Seniors 50 2020"]
[Site "Helsinki"]
[Date "2020.09.24"]
[Round "1.2"]
[White "Vainikainen, Tommi"]
[Black "Piho, Juha"]
[Result "1-0"]
[ECO "B22"]
[WhiteElo "1850"]
[BlackElo "1915"]
[Annotator "ChessBase"]
[PlyCount "115"]
[EventDate "2020.09.24"]
[EventType "tourn"]
[EventCountry "FIN"]
[SourceTitle "playchess.com"]
[Source "ChessBase"]
[SourceQuality "1"]
[TimeControl "40/5400+30:1800+30"]

1. e4 {[%emt 0:00:00]} c5 {[%emt 0:00:00]} 2. c3 {[%emt 0:00:00]} d5 {[%emt 0:00:00]} 3. exd5 {[%emt 0:00:00]} Qxd5 {[%emt 0:00:07]} 4. d4 {[%emt 0:00:00]} Nf6 {[%emt 0:02:10]} 5. Nf3 {[%emt 0:00:00]} Bg4 {[%emt 0:00:10]} 6. Be2 {[%emt 0:00:05]} Nc6 {[%emt 0:00:44]} 7. c4 {[%emt 0:03:10]} Qf5 {[%emt 0:11:19]} 8. d5 {[%emt 0:04:15]} Bxf3 {[%emt 0:03:43]} 9. Bxf3 {[%emt 0:00:17]} Nd4 {[%emt 0:01:14]} 10. Na3 {[%emt 0:05:39]} Nxf3+ {[%emt 0:00:57]} 11. Qxf3 {[%emt 0:00:13]} Qxf3 {[%emt 0:00:34]} 12. gxf3 {[%emt 0:00:08]} a6 {[%emt 0:09:49]} 13. Be3 {[%emt 0:04:05]} Nd7 {[%emt 0:01:15]} 14. f4 {[%emt 0:00:56]} g6 {[%emt 0:00:39]} 15. Rd1 {[%emt 0:12:02]} Bg7 {[%emt 0:01:42]} 16. b3 {[%emt 0:00:17]} Bb2 {[%emt 0:08:59]} 17. Nb1 {[%emt 0:00:21]} O-O {[%emt 0:06:06]} 18. Rg1 {[%emt 0:04:32]} b5 {[%emt 0:07:26]} 19. Nd2 {[%emt 0:03:34]} Bc3 {[%emt 0:04:49]} 20. Ke2 {[%emt 0:01:33]} f5 {[%emt 0:01:34]} 21. h4 {[%emt 0:01:01]} bxc4 {[%emt 0:10:43]} 22. Nxc4 {[%emt 0:02:43]} Rf6 {[%emt 0:06:27]} 23. h5 {[%emt 0:01:23]} Re8 {[%emt 0:03:24]} 24. Rd3 {[%emt 0:00:48]} Bd4 {[%emt 0:02:34]} 25. Bxd4 {[%emt 0:02:34]} cxd4 {[%emt 0:00:13]} 26. Rxd4 {[%emt 0:00:28]} e5 {[%emt 0:02:25]} 27. dxe6 {[%emt 0:04:25]} Rfxe6+ {[%emt 0:01:52]} 28. Kf3 {[%emt 0:00:22]} R8e7 {[%emt 0:04:09]} 29. hxg6 {[%emt 0:00:39]} hxg6 {[%emt 0:00:26]} 30. Ne3 {[%emt 0:07:44]} Kf7 {[%emt 0:00:45]} 31. Nd5 {[%emt 0:00:44]} Rd6 {[%emt 0:04:16]} 32. Rgd1 {[%emt 0:06:41]} Re4 {[%emt 0:04:49]} 33. Rxe4 {[%emt 0:07:33]} fxe4+ {[%emt 0:00:12]} 34. Kxe4 {[%emt 0:00:47]} Nf6+ {[%emt 0:00:44]} 35. Ke5 {[%emt 0:00:08]} Re6+ {[%emt 0:00:21]} 36. Kd4 {[%emt 0:00:10]} Re4+ {[%emt 0:00:46]} 37. Kc5 {[%emt 0:03:20]} Re2 {[%emt 0:00:34]} 38. Nxf6 {[%emt 0:00:46]} Kxf6 {[%emt 0:00:02]} 39. Rd6+ {[%emt 0:00:27]} Kf5 {[%emt 0:00:06]} 40. Rxa6 {[%emt 0:00:26]} Rxf2 {[%emt 0:00:04]} 41. b4 {[%emt 0:31:48]} Rxf4 {[%emt 0:30:34]} 42. b5 {[%emt 0:00:16]} Rf2 {[%emt 0:02:17]} 43. Ra3 {[%emt 0:16:22]} Rc2+ {[%emt 0:00:00]} 44. Kd4 {[%emt 0:00:00]} Rb2 {[%emt 0:00:00]} 45. Kc4 {[%emt 0:00:00]} g5 {[%emt 0:00:00]} 46. Ra5 {[%emt 0:00:00]} Ke4 {[%emt 0:00:00]} 47. Kc3 {[%emt 0:00:00]} Rb1 {[%emt 0:00:00]} 48. Ra4+ {[%emt 0:00:00]} Kf5 {[%emt 0:00:00]} 49. Rb4 {[%emt 0:00:00]} Rc1+ {[%emt 0:00:00]} 50. Kd2 {[%emt 0:00:00]} Rc8 {[%emt 0:00:00]} 51. b6 {[%emt 0:00:00]} Ke5 {[%emt 0:00:00]} 52. a4 {[%emt 0:00:00]} Kd5 {[%emt 0:00:00]} 53. b7 {[%emt 0:00:00]} Rb8 {[%emt 0:00:00]} 54. a5 {[%emt 0:00:00]} Kc5 {[%emt 0:00:00]} 55. Rb1 {[%emt 0:14:48]} Kc6 {[%emt 0:00:00]} 56. a6 {[%emt 0:00:00]} Kc7 {[%emt 0:00:00]} 57. Rc1+ {[%emt 0:00:00]} Kb6 {[%emt 0:00:00]} 58. Rc8 {[%emt 0:00:00]} 1-0

[Event "FIN-ch Seniors 50 2020"]
[Site "Helsinki"]
[Date "2020.09.24"]
[Round "1.3"]
[White "Salmenkivi, Eero"]
[Black "Lyly, Seppo"]
[Result "0-1"]
[ECO "C54"]
[WhiteElo "2053"]
[BlackElo "1880"]
[Annotator "ChessBase"]
[PlyCount "133"]
[EventDate "2020.09.24"]
[EventType "tourn"]
[EventCountry "FIN"]
[SourceTitle "playchess.com"]
[Source "ChessBase"]
[SourceQuality "1"]
[TimeControl "40/5400+30:1800+30"]

1. e4 {[%emt 0:00:00]} e5 {[%emt 0:00:00]} 2. Nf3 {[%emt 0:00:00]} Nc6 {[%emt 0:00:00]} 3. Bc4 {[%emt 0:00:00]} Bc5 {[%emt 0:00:49]} 4. c3 {[%emt 0:00:00]} Nf6 {[%emt 0:00:24]} 5. d4 {[%emt 0:00:15]} exd4 {[%emt 0:04:37]} 6. cxd4 {[%emt 0:00:09]} Bb4+ {[%emt 0:00:10]} 7. Bd2 {[%emt 0:00:08]} Bxd2+ {[%emt 0:01:11]} 8. Nbxd2 {[%emt 0:00:04]} O-O {[%emt 0:00:36]} 9. d5 {[%emt 0:14:28]} Ne7 {[%emt 0:05:20]} 10. O-O {[%emt 0:02:42]} d6 {[%emt 0:00:30]} 11. Nd4 {[%emt 0:03:39]} Ng6 {[%emt 0:06:12]} 12. Rc1 {[%emt 0:08:59]} Re8 {[%emt 0:04:45]} 13. Re1 {[%emt 0:03:03]} Ng4 {[%emt 0:05:28]} 14. h3 {[%emt 0:06:40]} N4e5 {[%emt 0:04:01]} 15. Bf1 {[%emt 0:03:29]} Bd7 {[%emt 0:08:47]} 16. g3 {[%emt 0:10:47]} f6 {[%emt 0:06:46]} 17. f4 {[%emt 0:02:11]} Nf7 {[%emt 0:01:50]} 18. Kh2 {[%emt 0:06:01]} Nh6 {[%emt 0:08:59]} 19. Qc2 {[%emt 0:02:38]} Rc8 {[%emt 0:00:30]} 20. Bd3 {[%emt 0:02:12]} c6 {[%emt 0:04:44]} 21. dxc6 {[%emt 0:03:54]} bxc6 {[%emt 0:02:52]} 22. Nc4 {[%emt 0:02:06]} Qc7 {[%emt 0:01:56]} 23. Qb3 {[%emt 0:02:58]} Rb8 {[%emt 0:03:13]} 24. Qa3 {[%emt 0:00:17]} c5 {[%emt 0:03:05]} 25. Ne3 {[%emt 0:00:23]} Qb6 {[%emt 0:01:17]} 26. Nb3 {[%emt 0:01:38]} Be6 {[%emt 0:03:16]} 27. Bc4 {[%emt 0:02:06]} Bxc4 {[%emt 0:02:53]} 28. Nxc4 {[%emt 0:03:29]} Qc7 {[%emt 0:00:12]} 29. Qa5 {[%emt 0:00:54]} Qe7 {[%emt 0:01:52]} 30. Qd2 {[%emt 0:00:31]} Rbd8 {[%emt 0:01:33]} 31. Rcd1 {[%emt 0:02:35]} Nf7 {[%emt 0:00:52]} 32. Qd5 {[%emt 0:00:45]} Kh8 {[%emt 0:01:12]} 33. h4 {[%emt 0:00:33]} Nf8 {[%emt 0:03:01]} 34. Nbd2 {[%emt 0:00:21]} Ne6 {[%emt 0:00:31]} 35. Nf3 {[%emt 0:00:12]} Rb8 {[%emt 0:01:22]} 36. b3 {[%emt 0:01:04]} Rbd8 {[%emt 0:01:23]} 37. Qd3 {[%emt 0:02:26]} Qc7 {[%emt 0:00:51]} 38. Ne3 {[%emt 0:00:21]} Qa5 {[%emt 0:00:43]} 39. Rd2 {[%emt 0:02:05]} Nc7 {[%emt 0:02:17]} 40. g4 {[%emt 0:02:23]} Qb4 {[%emt 0:03:13]} 41. Nd5 {[%emt 0:33:45]} Nxd5 {[%emt 0:32:25]} 42. Qxd5 {[%emt 0:00:54]} Nh6 {[%emt 0:01:30]} 43. Kg3 {[%emt 0:00:40]} Ng8 {[%emt 0:01:52]} 44. Qd3 {[%emt 0:00:00]} a5 {[%emt 0:00:00]} 45. Rc2 {[%emt 0:00:00]} d5 {[%emt 0:00:00]} 46. e5 {[%emt 0:00:00]} fxe5 {[%emt 0:00:00]} 47. fxe5 {[%emt 0:00:00]} Nh6 {[%emt 0:00:00]} 48. Rg1 {[%emt 0:00:00]} Qxg4+ {[%emt 0:00:00]} 49. Kf2 {[%emt 0:00:00]} Qf4 {[%emt 0:00:00]} 50. Ke1 {[%emt 0:00:00]} c4 {[%emt 0:00:00]} 51. Qe2 {[%emt 0:00:00]} cxb3 {[%emt 0:00:00]} 52. axb3 {[%emt 0:00:00]} Qb4+ {[%emt 0:00:00]} 53. Nd2 {[%emt 0:00:00]} Qxh4+ {[%emt 0:00:00]} 54. Kd1 {[%emt 0:00:00]} d4 {[%emt 0:00:00]} 55. Qg2 {[%emt 0:00:00]} Re7 {[%emt 0:00:00]} 56. Kc1 {[%emt 0:00:00]} d3 {[%emt 0:00:00]} 57. Rc6 {[%emt 0:00:00]} Qd4 {[%emt 0:00:00]} 58. Kb1 {[%emt 0:04:12]} Qxe5 {[%emt 0:00:00]} 59. Rgc1 {[%emt 0:02:59]} a4 {[%emt 0:00:00]} 60. Rc8 {[%emt 0:00:37]} Rg8 {[%emt 0:01:25]} 61. Rxg8+ {[%emt 0:01:19]} Nxg8 {[%emt 0:00:20]} 62. bxa4 {[%emt 0:00:10]} Qd4 {[%emt 0:00:50]} 63. Rc4 {[%emt 0:01:11]} Re1+ {[%emt 0:01:18]} 64. Ka2 {[%emt 0:00:08]} Qa1+ {[%emt 0:01:13]} 65. Kb3 {[%emt 0:00:06]} Qd1+ {[%emt 0:01:44]} 66. Kc3 {[%emt 0:00:16]} Re2 {[%emt 0:00:24]} 67. Qf1 {[%emt 0:08:47]} 0-1

[Event "FIN-ch Seniors 50 2020"]
[Site "Helsinki"]
[Date "2020.09.24"]
[Round "1.4"]
[White "Salmi, Ilkka"]
[Black "Salimaki, Janne"]
[Result "0-1"]
[ECO "A22"]
[WhiteElo "1870"]
[BlackElo "2092"]
[Annotator "NA"]
[PlyCount "92"]
[EventDate "2020.09.24"]
[EventType "tourn"]
[EventCountry "FIN"]
[SourceTitle "playchess.com"]
[Source "ChessBase"]
[SourceQuality "1"]
[TimeControl "40/5400+30:1800+30"]

1. c4 {[%emt 1:30:30]} Nf6 {[%emt 1:30:30]} 2. Nc3 {[%emt 0:00:30]} e5 {[%emt 0:00:30]} 3. g3 {[%emt 0:00:30]} Bb4 {[%emt 0:00:30]} 4. Bg2 {[%emt 0:00:30]} O-O {[%emt 0:00:30]} 5. e3 {[%emt 0:00:30]} Re8 {[%emt 0:00:30]} 6. Nge2 {[%emt 0:00:30]} c6 {[%emt 0:00:30]} 7. a3 {[%emt 0:00:30]} Bf8 {[%emt 0:00:30]} 8. e4 {[%emt 0:00:30]} Na6 {[%emt 0:00:30]} 9. O-O {[%emt 0:00:30]} Nc5 {[%emt 0:00:30]} 10. d3 {[%emt 0:00:30]} a5 {[%emt 0:00:30]} 11. f4 {[%emt 0:00:30]} d6 {[%emt 0:00:30]} 12. Qc2 {[%emt 0:00:30]} a4 {[%emt 0:00:30]} 13. Bd2 {[%emt 0:00:30]} Nb3 {[%emt 0:00:30]} 14. Rab1 {[%emt 0:00:30]} Qb6+ {[%emt 0:00:30]} 15. Kh1 {[%emt 0:00:30]} Ng4 {[%emt 0:00:30]} 16. Nd1 {[%emt 0:00:30]} Nxd2 {[%emt 0:00:30]} 17. Qxd2 {[%emt 0:00:30]} Qa5 {[%emt 0:00:30]} 18. Nec3 {[%emt 0:00:30]} Qc5 {[%emt 0:00:30]} 19. h3 {[%emt 0:00:30]} Nf6 {[%emt 0:00:30]} 20. Ne3 {[%emt 0:00:30]} Be7 {[%emt 0:00:30]} 21. Rbd1 {[%emt 0:00:30]} Bd8 {[%emt 0:00:30]} 22. Ne2 {[%emt 0:00:30]} Bb6 {[%emt 0:00:30]} 23. d4 {[%emt 0:00:30]} exd4 {[%emt 0:00:30]} 24. Nxd4 {[%emt 0:00:30]} Nxe4 {[%emt 0:00:30]} 25. Bxe4 {[%emt 0:00:30]} Rxe4 {[%emt 0:00:30]} 26. Nec2 {[%emt 0:00:30]} Bxh3 {[%emt 0:00:30]} 27. Rfe1 {[%emt 0:00:30]} Rxe1+ {[%emt 0:00:30]} 28. Rxe1 {[%emt 0:00:30]} Qxc4 {[%emt 0:00:30]} 29. Qe3 {[%emt 0:00:30]} Qd5+ {[%emt 0:00:30]} 30. Qf3 {[%emt 0:00:30]} Qxf3+ {[%emt 0:00:30]} 31. Nxf3 {[%emt 0:00:30]} Kf8 {[%emt 0:00:30]} 32. Kh2 {[%emt 0:00:30]} Bg4 {[%emt 0:00:30]} 33. Nh4 {[%emt 0:00:30]} Re8 {[%emt 0:00:30]} 34. Rxe8+ {[%emt 0:00:30]} Kxe8 {[%emt 0:00:30]} 35. Kg2 {[%emt 0:00:30]} d5 {[%emt 0:00:30]} 36. Kf1 {[%emt 0:00:30]} Bc5 {[%emt 0:00:30]} 37. Ke1 {[%emt 0:00:30]} b5 {[%emt 0:00:30]} 38. Ng2 {[%emt 0:00:30]} Bf5 {[%emt 0:00:30]} 39. Nge3 {[%emt 0:00:30]} Be4 {[%emt 0:00:30]} 40. Kd2 {[%emt 0:00:30]} h5 {[%emt 0:00:30]} 41. Nb4 {[%emt 0:30:30]} Kd7 {[%emt 0:30:30]} 42. Ke2 {[%emt 0:00:30]} f6 {[%emt 0:00:30]} 43. Nd1 {[%emt 0:00:30]} Bd4 {[%emt 0:00:30]} 44. Nc3 {[%emt 0:00:30]} g5 {[%emt 0:00:30]} 45. Nd3 {[%emt 0:00:30]} Bxd3+ {[%emt 0:00:30]} 46. Kxd3 {[%emt 0:00:30]} Bxc3 {[%emt 0:00:30]} 0-1

[Event "FIN-ch Seniors 50 2020"]
[Site "Helsinki"]
[Date "2020.09.25"]
[Round "2.2"]
[White "Lyly, Seppo"]
[Black "Salmi, Ilkka"]
[Result "1-0"]
[ECO "A14"]
[WhiteElo "1880"]
[BlackElo "1870"]
[Annotator "NA"]
[PlyCount "57"]
[EventDate "2020.09.24"]
[EventType "tourn"]
[EventCountry "FIN"]
[SourceTitle "playchess.com"]
[Source "ChessBase"]
[SourceQuality "1"]
[TimeControl "40/5400+30:1800+30"]

{[%evp 8,57,22,15,6,32767,32767,32767,32767,6,60,32,62,52,68,36,32767,45,59,25,45,15,12,8,12,7,54,60,104,120,179,185,194,195,188,125,136,136,32767,366,377,32767,32767,32767,397,400,587,595,572,483,1366,1666]} 1. Nf3 {[%emt 0:00:00]} d5 {[%emt 0:00:00]} 2. c4 {[%emt 0:00:00]} e6 {[%emt 0:00:48]} 3. g3 {[%emt 0:00:34]} Nf6 {[%emt 0:00:33]} 4. Bg2 {[%emt 0:00:28]} Be7 {[%emt 0:00:22]} 5. O-O {[%emt 0:00:18]} O-O {[%emt 0:00:04]} 6. b3 {[%emt 0:06:05]} c6 {[%emt 0:00:27]} 7. Bb2 {[%emt 0:00:25]} Nbd7 {[%emt 0:02:09]} 8. d3 {[%emt 0:00:50]} Qb6 {[%emt 0:03:45] A14: English Opening: 1...e6 with b3 by White.} 9. Nbd2 {[%emt 0:01:58] [#]} c5 $146 {[%emt 0:02:06]} ({Predecessor:} 9... Rd8 10. Qc2 Ne8 11. e4 dxe4 12. dxe4 f6 13. e5 f5 14. Rfd1 Nf8 15. a3 c5 16. Rac1 {1-0 (32) Vavrinec,T (1927)-Hozda,M (1630) Ricany 2020}) 10. cxd5 {[%emt 0:07:13]} exd5 {[%emt 0:01:30]} 11. Rc1 {[%emt 0:01:20]} Qd6 {[%emt 0:03:03]} 12. d4 {[%emt 0:02:12]} ({Better is} 12. e4 $16) 12... b6 {[%emt 0:01:04]} 13. Ba3 {[%emt 0:04:28]} Qe6 {[%emt 0:01:30]} 14. Re1 {[%emt 0:03:42]} Bb7 {[%emt 0:02:04]} 15. Ng5 {[%emt 0:14:17]} Qf5 {[%emt 0:01:28]} 16. h4 {[%emt 0:00:49]} Ng4 {[%emt 0:04:46]} 17. Nh3 {[%emt 0:05:42]} Ngf6 {[%emt 0:05:45]} 18. Nf4 {[%emt 0:01:35]} g5 {[%emt 0:01:48]} 19. hxg5 {[%emt 0:01:09]} Qxg5 {[%emt 0:15:13]} 20. e4 {[%emt 0:11:34]} dxe4 {[%emt 0:04:55]} 21. Nxe4 {[%emt 0:01:04]} Bxe4 {[%emt 0:17:15]} 22. Bxe4 {[%emt 0:00:20]} Bd6 {[%emt 0:04:44]} 23. Nh3 {[%emt 0:08:09]} Qh6 {[%emt 0:00:35]} 24. Bxa8 {[%emt 0:01:08]} Qxh3 {[%emt 0:00:56]} 25. Bg2 {[%emt 0:00:08]} Qf5 {[%emt 0:01:11]} 26. Qf3 {[%emt 0:01:01]} Qg5 {[%emt 0:03:32]} (26... Qxf3 $142 27. Bxf3 Re8 28. Rxe8+ Nxe8) 27. Rcd1 {[%emt 0:03:17]} Ng4 {[%emt 0:05:06]} 28. dxc5 {[%emt 0:01:04]} Qh5 {[%emt 0:00:39]} (28... Bxc5 $142 29. Bxc5 (29. Rxd7 Bxf2+ 30. Qxf2 Nxf2 $11) 29... Nxc5) 29. Rxd6 $18 {[%emt 0:00:53]} 1-0

[Event "FIN-ch Seniors 50 2020"]
[Site "Helsinki"]
[Date "2020.09.25"]
[Round "3.1"]
[White "Vainikainen, Tommi"]
[Black "Kumpulainen, Jari"]
[Result "1/2-1/2"]
[ECO "B01"]
[WhiteElo "1850"]
[BlackElo "1912"]
[Annotator "NA"]
[PlyCount "67"]
[EventDate "2020.09.24"]
[EventType "tourn"]
[EventCountry "FIN"]
[SourceTitle "playchess.com"]
[Source "ChessBase"]
[SourceQuality "1"]
[TimeControl "40/5400+30:1800+30"]

1. e4 {[%emt 0:00:00]} d5 {[%emt 0:00:00]} 2. exd5 {[%emt 0:00:00]} Qxd5 {[%emt 0:00:03]} 3. Nc3 {[%emt 0:00:00]} Qa5 {[%emt 0:00:04]} 4. d4 {[%emt 0:00:12]} c6 {[%emt 0:00:04]} 5. Nf3 {[%emt 0:00:52]} Nf6 {[%emt 0:00:07]} 6. Be2 {[%emt 0:07:00]} Bf5 {[%emt 0:00:28]} 7. O-O {[%emt 0:00:20]} e6 {[%emt 0:00:05]} 8. Bf4 {[%emt 0:03:59]} Nbd7 {[%emt 0:00:38]} 9. a3 {[%emt 0:03:26]} h6 {[%emt 0:05:47]} 10. Re1 {[%emt 0:04:16]} Be7 {[%emt 0:01:09]} 11. Bd3 {[%emt 0:01:08]} Bxd3 {[%emt 0:02:00]} 12. Qxd3 {[%emt 0:00:07]} O-O {[%emt 0:00:24]} 13. Ne4 {[%emt 0:16:28]} Nxe4 {[%emt 0:02:11]} 14. Rxe4 {[%emt 0:00:08]} Nf6 {[%emt 0:09:04]} 15. Re5 {[%emt 0:00:42]} Qd8 {[%emt 0:00:15]} 16. Bd2 $15 {[%emt 0:01:13]} Bd6 {[%emt 0:01:05]} 17. Ree1 {[%emt 0:01:15]} Qc7 {[%emt 0:02:29]} 18. Ne5 {[%emt 0:07:33]} c5 {[%emt 0:02:19]} 19. Qg3 {[%emt 0:01:03]} Kh7 {[%emt 0:07:44]} 20. Qh4 {[%emt 0:01:48]} Be7 {[%emt 0:04:24]} 21. dxc5 {[%emt 0:05:15]} Qxc5 {[%emt 0:01:20]} 22. Bb4 {[%emt 0:05:13]} Qc7 {[%emt 0:00:42]} 23. Bxe7 {[%emt 0:00:28]} Qxe7 {[%emt 0:00:14]} 24. c4 {[%emt 0:00:20]} Qc7 {[%emt 0:01:44]} 25. b4 {[%emt 0:06:12]} Rad8 {[%emt 0:00:47]} 26. Qg3 {[%emt 0:01:32]} Kg8 {[%emt 0:06:40]} 27. c5 {[%emt 0:05:01]} Rd4 {[%emt 0:06:25]} 28. Rad1 {[%emt 0:01:07]} Ne4 {[%emt 0:03:27]} 29. Qe3 {[%emt 0:02:11]} Rxd1 {[%emt 0:04:30]} 30. Rxd1 {[%emt 0:00:06]} Nf6 {[%emt 0:38:51]} 31. Nc4 {[%emt 0:26:35]} Nd5 {[%emt 0:00:30]} 32. Ne5 {[%emt 0:00:30]} Nf6 {[%emt 0:00:30]} 33. Qb3 {[%emt 0:00:30]} a5 {[%emt 0:00:30]} 34. Qf3 {[%emt 0:00:30]} 1/2-1/2

[Event "FIN-ch Seniors 50 2020"]
[Site "Helsinki"]
[Date "2020.09.25"]
[Round "3.2"]
[White "Salmenkivi, Eero"]
[Black "Hamalainen, Sami"]
[Result "0-1"]
[ECO "C02"]
[WhiteElo "2053"]
[BlackElo "2182"]
[Annotator "NA"]
[PlyCount "78"]
[EventDate "2020.09.24"]
[EventType "tourn"]
[EventCountry "FIN"]
[SourceTitle "playchess.com"]
[Source "ChessBase"]
[SourceQuality "1"]
[TimeControl "40/5400+30:1800+30"]

1. e4 {[%emt 0:00:00]} e6 {[%emt 0:00:00]} 2. d4 {[%emt 0:00:00]} d5 {[%emt 0:00:00]} 3. e5 {[%emt 0:00:00]} c5 {[%emt 0:00:00]} 4. c3 {[%emt 0:00:00]} Nc6 {[%emt 0:00:09]} 5. Nf3 {[%emt 0:00:00]} Qb6 {[%emt 0:00:14]} 6. Be2 {[%emt 0:00:06]} Nge7 {[%emt 0:04:03]} 7. Na3 {[%emt 0:00:19]} cxd4 {[%emt 0:02:05]} 8. cxd4 {[%emt 0:00:12]} Nf5 {[%emt 0:00:45]} 9. Nc2 {[%emt 0:00:10]} Bb4+ {[%emt 0:11:58]} 10. Kf1 {[%emt 0:00:14]} Be7 {[%emt 0:01:40]} 11. g4 {[%emt 0:03:58]} Nh4 {[%emt 0:12:41]} 12. Nxh4 {[%emt 0:01:19]} Bxh4 {[%emt 0:00:04]} 13. Kg2 {[%emt 0:02:22]} Bd7 {[%emt 0:12:39]} 14. f4 {[%emt 0:01:53]} O-O-O {[%emt 0:01:51]} 15. b4 {[%emt 0:00:37]} Be7 {[%emt 0:08:46]} 16. b5 {[%emt 0:04:42]} Na5 {[%emt 0:01:01]} 17. a4 {[%emt 0:01:08]} Kb8 {[%emt 0:01:53]} 18. Qd3 {[%emt 0:18:40]} Rc8 {[%emt 0:03:33]} 19. Be3 {[%emt 0:03:37]} g6 {[%emt 0:19:00]} 20. Rhc1 {[%emt 0:09:35]} Rc4 {[%emt 0:04:35]} 21. Na3 {[%emt 0:01:21]} Rxa4 {[%emt 0:02:05]} 22. Bf2 {[%emt 0:21:32]} Bxa3 {[%emt 0:02:36]} 23. Rxa3 {[%emt 0:00:06]} Bxb5 {[%emt 0:00:43]} 24. Rxa4 {[%emt 0:01:47]} Bxd3 {[%emt 0:00:33]} 25. Bxd3 {[%emt 0:00:02]} Rc8 {[%emt 0:02:47]} 26. Rb1 {[%emt 0:01:32]} Qc7 {[%emt 0:01:23]} 27. Be1 {[%emt 0:01:16]} Nc4 {[%emt 0:00:41]} 28. Kf3 {[%emt 0:00:46]} Qc6 {[%emt 0:00:35]} 29. Rba1 {[%emt 0:00:52]} a6 {[%emt 0:00:26]} 30. Rb4 {[%emt 0:01:42]} b5 {[%emt 0:02:13]} 31. Rb3 {[%emt 0:01:01]} Kb7 {[%emt 0:00:27]} 32. Ra2 {[%emt 0:00:52]} Qb6 {[%emt 0:00:35]} 33. Bc3 {[%emt 0:00:21]} Ra8 {[%emt 0:01:46]} 34. Rb1 {[%emt 0:01:38]} a5 {[%emt 0:00:58]} 35. Bxc4 {[%emt 0:01:49]} dxc4 {[%emt 0:00:20]} 36. Rxb5 {[%emt 0:00:05]} Qxb5 {[%emt 0:00:21]} 37. Rb2 {[%emt 0:00:02]} Qxb2 {[%emt 0:00:51]} 38. Bxb2 {[%emt 0:00:01]} Kc6 {[%emt 0:00:09]} 39. f5 {[%emt 0:00:23]} Rb8 {[%emt 0:00:32]} 0-1